bitfinex-derivatives/quotes_ETHF0:USTF0_20251204
["timestamp","ask_amount","ask_price","bid_price","bid_amount"]
[1764873971444,0.00477691,3139.4,3139.0,19.066]
[1764873971739,40.8,3139.3,3139.0,19.066]
[1764873971940,0.00477691,3139.4,3139.0,19.066]
[1764873972140,0.00477691,3139.4,3139.3,14.6024]
[1764873972440,0.00477691,3139.4,3139.3,17.96942]
[1764873973243,7.1493,3139.9,3139.8,4.4636]
[1764873973443,0.00344862,3139.9,3139.8,11.99442758]
[1764873973643,0.00344862,3139.9,3139.8,19.06952758]
[1764873975744,0.00477691,3140.2,3140.1,14.6024]
[1764873976547,0.00857044,3140.2,3140.1,14.6024]
[1764873979143,10.3571,3140.8,3140.7,7.5273]
[1764873979341,12.788,3140.9,3140.8,14.6024]
[1764873979536,3.2078,3141.2,3140.8,14.6024]
[1764873979841,40.8,3141.4,3141.3,7.5273]
[1764873980239,40.80315692,3141.4,3141.3,7.5273]
[1764873981347,0.00477691,3141.7,3141.6,14.6024]
[1764873982449,0.00840676,3141.7,3141.6,14.6024]
[1764873983039,3.2078,3142.6,3142.0,14.6024]
[1764873983243,3.2078,3142.6,3142.0,17.8102]
[1764873983544,40.8,3142.5,3142.0,17.8102]
[1764873983938,40.80397476,3142.5,3142.0,17.81350817]
[1764873984139,0.00397476,3142.5,3142.4,14.6024]
[1764873984445,3.559,3143.2,3142.5,14.6024]
[1764873984640,40.8,3143.1,3142.5,14.6024]
[1764873985247,40.80882817,3143.1,3142.5,14.60717691]
[1764873985645,53.58682817,3143.1,3142.5,14.60717691]
[1764873986747,40.80882817,3143.1,3142.5,14.60717691]
[1764873987049,12.777,3143.0,3142.5,14.60717691]
[1764873987436,14.2681,3142.6,3142.5,0.00477691]
[1764873987640,17.4759,3142.6,3142.5,0.00477691]
[1764873988249,3.2078,3142.6,3142.0,7.53060817]
[1764873988645,12.779,3142.5,3142.0,7.53060817]
[1764873988948,12.778,3142.4,3142.0,7.53060817]
[1764873989336,15.9858,3142.6,3142.0,7.53060817]
[1764873989549,7.1493,3142.1,3142.0,0.00330817]
[1764873989745,3.2078,3142.6,3142.0,14.60570817]
[1764873989951,12.776,3142.5,3142.0,14.60570817]
[1764873990142,3.2078,3142.6,3142.0,14.60570817]
[1764873990448,15.9838,3142.6,3142.0,14.60570817]
[1764873990950,14.2681,3142.1,3142.0,0.00330817]
[1764873991743,0.15908,3142.1,3141.6,4.4636]
[1764873991944,12.93208,3142.1,3141.6,4.4636]
[1764873992137,7.1493,3141.7,3141.6,4.4636]
[1764873992547,7.1493,3141.7,3141.6,4.46659377]
[1764873992754,14.2681,3141.7,3141.6,0.00299377]
[1764873993456,7.1493,3141.7,3141.6,7.53029377]
[1764873993745,12.77,3141.7,3141.6,14.60539377]
[1764873994645,40.8,3142.0,3141.9,15.2624]
[1764873994845,53.569,3142.0,3141.9,15.2624]
[1764873995951,53.569,3142.0,3141.6,0.00299377]
[1764873996945,53.571,3142.0,3141.6,0.00299377]
[1764873997547,7.805,3141.7,3141.6,0.00299377]
[1764873997853,15.547,3141.7,3141.6,0.00299377]
[1764873998354,53.571,3142.0,3141.6,15.26539377]
[1764873998849,7.805,3141.7,3141.6,15.26539377]
[1764873999850,53.571,3142.0,3141.6,15.26539377]
[1764874001053,7.805,3141.7,3141.6,15.26539377]
[1764874002856,12.763,3141.8,3141.7,15.2624]
[1764874003052,20.568,3141.8,3141.7,15.2624]
[1764874003357,15.547,3141.7,3141.6,0.00299377]
[1764874003656,11.0128,3142.1,3142.0,19.798]
[1764874003952,7.805,3141.7,3141.6,7.69769377]
[1764874004553,7.805,3141.7,3141.6,15.26539377]
[1764874004854,44.0078,3142.1,3142.0,19.798]
[1764874005054,57.56669626,3142.1,3142.0,19.798]
[1764874005253,0.80089626,3142.1,3142.0,19.798]
[1764874005452,28.304,3142.3,3142.2,7.6947]
[1764874005652,69.90541774,3142.3,3142.2,7.6947]
[1764874006246,7.805,3142.1,3142.0,12.2303]
[1764874006452,0.80141774,3142.1,3142.0,19.798]
[1764874006658,12.895,3142.5,3142.4,15.2624]
[1764874006852,21.43905122,3142.5,3142.0,4.5356]
[1764874007046,15.547,3142.1,3142.0,12.2303]
[1764874007257,15.547,3142.1,3141.6,0.00299377]
[1764874007258,16.76485122,3142.1,3141.6,15.26539377]
[1764874007552,7.805,3141.7,3141.6,15.26539377]
[1764874007757,0.80205122,3141.7,3141.6,15.26539377]
[1764874007965,0.80222281,3142.0,3141.9,15.2624]
[1764874008252,12.754,3142.0,3141.9,15.2624]
[1764874008458,13.55624309,3142.0,3141.9,15.2624]
[1764874008657,44.0078,3142.6,3141.9,15.2624]
[1764874008960,27.8733,3142.3,3142.0,4.5788]
[1764874009261,8.23953171,3142.2,3142.1,7.3311]
[1764874009459,8.23953171,3142.2,3142.1,14.9877]
[1764874010856,0.80283171,3142.2,3142.1,14.9877]
[1764874011052,8.23953171,3142.2,3142.1,14.9877]
[1764874011563,0.80283171,3142.2,3142.1,14.9877]
[1764874012265,15.9578,3142.6,3142.5,19.5665]
[1764874012861,42.48785949,3142.9,3142.8,7.3311]
[1764874013061,55.23585949,3142.9,3142.8,7.3311]
[1764874013353,42.48785949,3142.9,3142.8,7.3311]
[1764874013552,55.23585949,3142.9,3142.8,7.3311]
[1764874013952,9.12455949,3142.9,3142.8,14.9877]
[1764874014159,3.2078,3143.0,3142.9,14.9877]
[1764874014863,18.3271,3143.0,3142.9,7.3311]
[1764874015159,10.6445,3143.0,3142.9,14.9877]
[1764874016459,40.80882817,3143.1,3143.0,19.5665]
[1764874016654,3.2078,3143.5,3143.0,19.5665]
[1764874016850,18.3271,3143.5,3143.4,7.3311]
[1764874017061,7.4367,3143.1,3142.7,3.2078]
[1764874017761,7.43930864,3143.1,3142.7,3.2078]
[1764874018059,15.1193,3142.8,3142.7,18.1955]
[1764874018265,7.4367,3142.8,3142.7,18.1955]
[1764874018562,0.00260864,3143.1,3142.7,18.1955]
[1764874018954,0.00260864,3143.1,3143.0,19.5665]
[1764874019354,7.4367,3142.8,3142.7,18.1955]
[1764874019863,15.1193,3142.7,3142.6,7.33587691]
[1764874020460,15.1193,3142.7,3142.6,0.00477691]
[1764874020862,15.1193,3142.7,3142.6,7.33587691]
[1764874021267,27.8693,3142.7,3142.6,7.33587691]
[1764874021567,27.8693,3142.7,3142.6,0.00477691]
[1764874022063,33.8693,3142.7,3141.5,7.7434]
[1764874022262,3.2078,3142.3,3141.5,7.7434]
[1764874022462,7.4367,3141.7,3141.6,7.33409377]
[1764874022655,7.4367,3141.7,3141.6,14.99069377]
[1764874023567,12.747,3141.8,3141.6,14.99069377]
[1764874023869,7.4367,3141.7,3141.6,14.53769377]
[1764874024167,20.1837,3141.7,3141.6,14.53769377]
[1764874024363,7.4367,3141.7,3141.6,14.53769377]
[1764874024680,15.34397249,3141.7,3141.6,0.00299377]
[1764874025661,15.34397249,3141.7,3141.6,7.77759377]
[1764874025867,20.97957249,3141.7,3141.6,14.98119377]
[1764874026768,28.08797249,3141.7,3141.6,7.77759377]
[1764874026969,28.08797249,3141.7,3141.6,0.00299377]
[1764874028563,14.577,3141.4,3141.3,0.00477691]
[1764874028764,15.37566814,3141.4,3141.3,0.00477691]
[1764874029161,0.79866814,3141.4,3141.3,14.98297691]
[1764874029371,20.2086,3141.6,3141.5,19.2455]
[1764874029565,20.2086,3141.6,3141.5,19.24887046]
[1764874029765,27.317,3141.6,3141.5,0.00337046]
[1764874029969,28.11527668,3141.6,3141.5,0.00337046]
[1764874030169,27.317,3141.6,3141.5,0.00337046]
[1764874030364,27.317,3141.6,3141.5,7.77797046]
[1764874030565,27.317,3141.6,3141.5,0.00337046]
[1764874031068,27.319,3141.6,3141.5,0.00337046]
[1764874031869,27.317,3141.6,3141.5,0.00337046]
[1764874032773,27.317,3141.6,3141.3,0.00477691]
[1764874032774,14.577,3141.4,3141.3,0.00477691]
[1764874032976,15.37423773,3141.4,3141.3,0.00477691]
[1764874033175,14.577,3140.7,3140.6,10.9824]
[1764874033473,7.1084,3140.2,3139.7,3.367]
[1764874033779,3.2078,3140.8,3140.2,7.7746]
[1764874033780,7.4686,3140.3,3140.2,7.7746]
[1764874033965,40.8,3140.6,3140.5,19.2455]
[1764874034169,40.8026004,3140.6,3140.5,19.2455]
[1764874034365,53.5486004,3140.6,3140.5,19.2455]
[1764874034570,53.5486004,3140.6,3140.2,0.00477691]
[1764874034571,14.577,3140.3,3140.2,0.00477691]
[1764874034783,53.5486004,3140.6,3140.2,14.98297691]
[1764874034968,40.8026004,3140.6,3140.5,19.2455]
[1764874035366,0.1591,3141.7,3140.5,19.2455]
[1764874035367,2.2247,3142.0,3141.3,7.7746]
[1764874035569,3.2078,3142.9,3141.9,14.9782]
[1764874035870,14.577,3142.2,3142.1,3.2078]
[1764874036272,40.8,3142.4,3142.3,7.7746]
[1764874036471,40.8026897,3142.4,3142.3,7.77720109]
[1764874037177,40.8026897,3142.4,3142.3,0.00260109]
[1764874037679,0.0026897,3142.4,3142.3,14.98080109]
[1764874037875,0.00477691,3142.7,3142.6,7.7746]
[1764874038184,0.00477691,3142.7,3142.6,10.9824]
[1764874038769,7.47337691,3142.7,3142.6,10.9824]
[1764874038973,7.4768787,3142.7,3142.6,10.9824]
[1764874039271,0.0082787,3142.7,3142.6,18.186]
[1764874039471,14.5852787,3142.7,3142.6,3.2078]
[1764874039676,14.5852787,3142.7,3142.6,10.9824]
[1764874039677,7.4768787,3142.7,3142.6,10.9824]
[1764874041284,14.5852787,3142.7,3142.6,3.2078]
[1764874042874,14.5852787,3142.7,3142.6,10.9824]
[1764874043191,14.5852787,3142.7,3142.6,3.2078]
[1764874043875,3.2078,3143.8,3142.6,18.186]
[1764874044077,14.577,3143.1,3143.0,3.2078]
[1764874044580,3.2078,3143.8,3143.0,18.186]
[1764874044781,18.8497,3143.5,3143.4,3.2078]
[1764874045082,0.00238056,3143.5,3143.4,18.186]
[1764874045278,7.47098056,3143.5,3143.4,18.186]
[1764874045485,0.00238056,3143.5,3143.4,18.186]
[1764874046879,7.47098056,3143.5,3143.4,18.186]
[1764874047379,18.85208056,3143.5,3143.4,3.2078]
[1764874050783,11.74368056,3143.5,3143.4,10.9824]
[1764874050980,31.58308056,3143.5,3143.4,3.2078]
[1764874051983,7.4686,3143.1,3143.0,10.9824]
[1764874053576,17.00608056,3143.5,3143.0,18.186]
[1764874053771,7.4686,3143.1,3143.0,18.186]
[1764874054177,4.27508056,3143.5,3143.0,18.186]
[1764874054484,12.731,3143.4,3143.3,14.4759]
[1764874055088,27.4647,3143.4,3143.0,3.2078]
[1764874055287,7.2562,3143.1,3143.0,17.6837]
[1764874055679,11.53128056,3143.5,3143.4,7.1479]
[1764874055885,19.00878056,3143.5,3143.0,3.2078]
[1764874056582,19.00878056,3143.5,3143.4,3.2078]
[1764874057588,0.00238056,3143.5,3143.4,17.6837]
[1764874057792,4.2727,3144.5,3143.7,14.4759]
[1764874058081,4.2727,3144.5,3144.4,7.1479]
[1764874058281,7.2562,3144.5,3144.4,14.4759]
[1764874058483,14.7337,3144.2,3144.1,3.2078]
[1764874058983,7.25969434,3144.2,3144.1,10.3557]
[1764874059190,19.00247691,3144.5,3144.1,3.2078]
[1764874059381,14.7337,3144.2,3144.1,10.3557]
[1764874059686,4.26877691,3144.5,3144.1,17.6837]
[1764874060082,40.8,3144.9,3144.4,14.4759]
[1764874060285,7.2562,3144.6,3144.5,10.3557]
[1764874060985,14.7337,3144.6,3144.5,3.2078]
[1764874062191,14.7337,3144.2,3144.1,3.2078]
[1764874062583,4.264,3144.5,3144.1,3.2078]
[1764874062890,14.8913,3144.2,3144.1,3.2078]
[1764874065192,4.264,3144.5,3144.1,17.4463]
[1764874065386,14.8913,3144.2,3144.1,10.2687]
[1764874065691,14.8913,3144.2,3144.1,3.2078]
[1764874066689,27.6263,3144.2,3144.1,3.2078]
[1764874068993,27.6203,3144.2,3144.1,3.2078]
[1764874069692,27.6193,3144.2,3144.1,10.2687]
[1764874070090,27.6183,3144.2,3144.1,10.2687]
[1764874070395,14.8913,3144.2,3144.1,10.2687]
[1764874070597,7.2646,3144.2,3144.1,10.2687]
[1764874070795,7.2646,3144.2,3144.1,17.4463]
[1764874071198,7.2646,3144.2,3144.1,10.2687]
[1764874071489,14.8913,3144.2,3144.1,10.2687]
[1764874071689,7.2646,3144.2,3144.1,17.4463]
[1764874071890,14.8913,3144.2,3144.1,17.4463]
[1764874072696,14.8913,3144.2,3144.1,3.2078]
[1764874073199,14.8913,3143.9,3143.8,0.00477691]
[1764874073396,12.722,3143.9,3143.8,14.24327691]
[1764874073802,27.27248545,3143.9,3143.8,0.00477691]
[1764874074300,28.07070925,3143.9,3143.8,0.00477691]
[1764874076798,14.8913,3143.4,3143.3,3.2078]
[1764874076997,27.6093,3143.4,3143.3,3.2078]
[1764874077198,28.40714817,3143.4,3143.3,3.2078]
[1764874079701,14.8913,3142.8,3142.7,3.2078]
[1764874081090,4.5173,3143.0,3142.7,3.2078]
[1764874081298,7.2646,3142.8,3142.7,17.4463]
[1764874081494,14.8913,3142.8,3142.7,3.2078]
[1764874081703,14.8913,3142.8,3142.4,0.00477691]
[1764874081704,19.4086,3142.5,3142.4,0.00477691]
[1764874082005,32.13256902,3142.5,3142.4,0.00477691]
[1764874082496,0.00396902,3142.5,3142.4,14.24327691]
[1764874082695,19.41256902,3142.5,3142.4,7.06567691]
[1764874082896,19.41256902,3142.5,3142.4,0.00477691]
[1764874083411,19.41256902,3142.5,3142.4,7.06567691]
[1764874083601,0.00396902,3142.5,3142.4,14.24327691]
[1764874087611,0.00396902,3142.5,3142.4,14.40233691]
[1764874087808,3.2078,3142.9,3142.8,15.5003]
[1764874088009,15.9268,3142.9,3142.8,15.5003]
[1764874088506,30.8146,3142.9,3142.8,7.7327]
[1764874088713,30.81818286,3142.9,3142.8,15.5003]
[1764874088915,23.08788286,3142.9,3142.8,15.5003]
[1764874089112,10.36888286,3142.9,3142.8,15.5003]
[1764874090317,18.09918286,3142.9,3142.4,0.16383691]
[1764874090814,30.81418286,3142.9,3142.4,0.16383691]
[1764874091015,30.81418286,3142.9,3142.8,7.7327]
[1764874091212,23.08388286,3142.9,3142.8,15.5003]
[1764874091613,3.21138286,3142.9,3142.8,15.5003]
[1764874091804,0.00477691,3143.1,3143.0,7.7327]
[1764874092010,0.00477691,3143.1,3143.0,15.5003]
[1764874092814,0.00837656,3143.1,3143.0,15.5003]
[1764874093113,0.00837656,3143.1,3142.4,0.00477691]
[1764874093114,7.1575,3142.5,3142.4,7.73747691]
[1764874093311,32.2249,3142.5,3142.4,0.00477691]
[1764874093508,32.2249,3142.5,3142.4,7.73747691]
[1764874093715,32.2249,3142.5,3142.4,0.00477691]
[1764874095014,32.2249,3142.5,3142.4,7.73747691]
[1764874095615,32.2249,3142.5,3142.4,0.00477691]
[1764874096012,24.4966,3142.5,3142.4,15.50507691]
[1764874096321,24.4936,3142.5,3142.4,15.50507691]
[1764874096516,32.2239,3142.5,3142.4,15.50507691]
[1764874097916,32.2239,3142.5,3142.4,0.00477691]
[1764874098621,3.2078,3142.9,3142.4,15.50507691]
[1764874098923,19.5109,3142.5,3142.4,0.00477691]
[1764874100520,19.5109,3142.5,3142.4,7.73747691]
[1764874100717,14.8878,3142.8,3142.4,0.00477691]
[1764874100913,14.8878,3142.8,3142.7,7.7327]
[1764874101114,7.1575,3142.5,3142.4,15.50507691]
[1764874101422,19.5109,3142.5,3142.4,7.73747691]
[1764874101620,19.5109,3142.5,3142.4,0.00477691]
[1764874102224,19.5109,3142.5,3142.4,15.50507691]
[1764874102617,19.5109,3142.5,3142.4,7.73747691]
[1764874103621,11.7806,3142.5,3142.4,15.50507691]
[1764874103819,19.5109,3142.5,3142.4,15.50507691]
[1764874104123,3.2078,3142.9,3142.4,15.50507691]
[1764874104425,19.5109,3142.5,3142.4,15.50507691]
[1764874106126,19.5109,3142.5,3142.4,7.73747691]
[1764874106427,19.5109,3142.5,3142.4,0.00477691]
[1764874106821,19.5109,3142.5,3142.4,7.73747691]
[1764874107426,19.5109,3142.5,3142.4,0.00477691]
[1764874108227,19.5109,3142.5,3142.4,7.73747691]
[1764874109427,32.2249,3142.5,3142.4,7.73747691]
[1764874110727,32.2249,3142.5,3142.4,15.50507691]
[1764874111128,3.2078,3142.9,3142.4,15.50507691]
[1764874111422,19.5109,3142.5,3142.4,1.52338856]
[1764874111625,19.5109,3141.5,3141.4,18.7081]
[1764874111823,19.5109,3141.5,3141.4,3.2078]
[1764874112719,19.5109,3141.5,3141.4,3.21023733]
[1764874113023,14.8878,3141.2,3141.1,0.00477691]
[1764874114118,14.8878,3141.2,3141.1,14.91874282]
[1764874114315,14.8878,3141.2,3141.1,0.00724282]
[1764874115328,27.6018,3141.2,3141.1,7.45224282]
[1764874116020,27.6018,3141.2,3141.1,0.00724282]
[1764874116820,27.6028,3141.2,3141.1,0.00724282]
[1764874117128,27.6028,3141.2,3141.1,7.45224282]
[1764874117424,27.6028,3141.2,3141.1,14.91874282]
[1764874118027,17.6752,3141.4,3141.3,7.445]
[1764874118231,30.3902,3141.4,3141.3,7.445]
[1764874118433,14.4674,3141.2,3141.1,0.00724282]
[1764874121732,19.8885,3141.3,3141.2,7.445]
[1764874121932,27.1834,3141.3,3141.2,7.445]
[1764874122127,14.4674,3141.2,3141.1,7.45224282]
[1764874122829,14.4674,3141.2,3141.1,0.00724282]
[1764874123035,14.4674,3141.2,3141.1,14.91874282]
[1764874123734,27.1834,3141.2,3141.1,7.45224282]
[1764874124036,27.1834,3141.2,3141.1,14.91874282]
[1764874124427,7.83567691,3141.5,3141.1,0.00724282]
[1764874124624,3.21257691,3141.5,3141.4,14.9115]
[1764874125727,0.00477691,3141.5,3141.4,14.9115]
[1764874125922,0.00477691,3141.5,3141.4,20.9115]
[1764874126125,22.1493,3142.0,3141.4,3.36691]
[1764874126430,18.9415,3141.5,3141.4,10.81191]
[1764874126636,18.9415,3141.5,3141.4,10.6528]
[1764874127036,7.17727691,3141.8,3141.7,7.445]
[1764874127232,7.1725,3141.5,3141.4,10.6528]
[1764874127434,18.7872,3141.5,3141.4,18.1193]
[1764874127639,12.72077691,3141.8,3141.4,18.1193]
[1764874128026,20.21707691,3141.8,3141.7,7.0406]
[1764874128330,27.47587691,3141.8,3141.7,7.0406]
[1764874128740,27.47587691,3141.8,3141.4,3.2078]
[1764874129140,27.47587691,3141.8,3141.7,7.0406]
[1764874129336,27.47587691,3141.8,3141.4,3.2078]
[1764874129642,19.0749,3141.5,3141.1,0.16637282]
[1764874129835,14.7551,3141.2,3141.1,0.00724282]
[1764874131244,14.7551,3141.2,3141.1,7.04784282]
[1764874131444,14.7551,3141.2,3141.1,0.00724282]
[1764874132240,14.7551,3140.7,3140.6,3.2078]
[1764874132441,7.4963,3140.7,3140.6,17.5668]
[1764874132638,4.3198,3141.0,3140.6,17.5668]
[1764874132841,19.0749,3141.0,3140.9,14.359]
[1764874133039,27.4711,3141.3,3141.2,7.0406]
[1764874133239,27.47486924,3141.3,3141.2,7.043136]
[1764874133546,30.68266924,3141.3,3141.2,0.002536]
[1764874138945,17.96666924,3141.3,3141.2,0.002536]
[1764874139145,30.68266924,3141.3,3141.2,0.002536]
[1764874140448,19.0749,3141.0,3140.9,0.00477691]
[1764874140641,31.7909,3141.0,3140.9,0.00477691]
[1764874140945,32.5870833,3141.0,3140.9,0.00477691]
[1764874141545,32.5870833,3141.0,3140.9,0.00843344]
[1764874141845,32.5870833,3141.0,3139.4,10.2484]
[1764874141846,19.0749,3139.5,3139.4,10.2484]
[1764874142147,19.0749,3139.5,3139.4,3.2078]
[1764874142449,11.5786,3139.0,3138.9,1.52001867]
[1764874142643,19.0749,3139.0,3138.9,1.52001867]
[1764874142849,0.00280525,3139.0,3138.9,16.04162965]
[1764874143143,10.7041,3140.3,3140.2,14.359]
[1764874143334,17.9629,3140.3,3140.2,8.56061867]
[1764874144045,7.49853685,3140.3,3140.2,15.87901867]
[1764874144349,14.79333685,3140.3,3140.2,19.08681867]
[1764874144549,27.50933685,3140.3,3140.2,19.08681867]
[1764874145451,27.50933685,3140.3,3140.2,4.72781867]
[1764874145636,0.00223685,3140.3,3140.2,19.59421867]
[1764874145835,0.00223685,3140.3,3140.2,19.75339867]
[1764874146036,1e-08,3140.3,3140.2,19.75339867]
[1764874146342,1e-08,3140.3,3140.2,20.66559612]
[1764874146941,1e-08,3140.3,3140.2,18.23338]
[1764874147345,1e-08,3140.3,3140.2,3.36698]
[1764874147346,14.32360001,3140.3,3140.2,3.36698]
[1764874147543,14.3236,3139.9,3139.8,3.2078]
[1764874147748,7.0288,3139.9,3139.8,18.0742]
[1764874148041,1e-08,3140.3,3139.8,18.0742]
[1764874148042,1e-08,3140.3,3139.9,0.15919]
[1764874148240,1e-08,3140.3,3140.2,3.2078]
[1764874148440,14.32360001,3140.3,3140.2,10.5445]
[1764874148748,7.02880001,3140.3,3140.2,18.0742]
[1764874148948,1e-08,3140.3,3140.2,3.2078]
[1764874149346,1e-08,3140.3,3140.2,3.36698]
[1764874150142,1e-08,3140.3,3140.2,9.36698]
[1764874152449,1e-08,3140.3,3140.2,3.36698]
[1764874153042,1e-08,3140.3,3140.2,9.36698]
[1764874153248,1e-08,3140.3,3140.2,3.36698]
[1764874154643,1e-08,3140.3,3140.2,9.36698]
[1764874155244,1e-08,3140.3,3140.2,3.36698]
[1764874156446,7.02880001,3140.3,3140.2,18.23338]
[1764874156641,14.32360001,3140.3,3140.2,18.23338]
[1764874158052,7.02880001,3140.3,3140.2,18.23338]
[1764874158254,1e-08,3140.3,3140.2,10.89668]
[1764874158858,1e-08,3140.3,3140.2,3.36698]
[1764874159857,7.02880001,3140.3,3140.2,18.23338]
[1764874160856,1e-08,3140.3,3140.2,10.89668]
[1764874161058,1e-08,3140.3,3140.2,3.36698]
[1764874162563,7.02880001,3140.3,3140.2,3.36698]
[1764874162769,14.32360001,3140.3,3140.2,18.23338]
[1764874163449,14.32360001,3140.3,3140.2,3.36698]
[1764874165146,14.32360001,3140.3,3140.2,10.70368]
[1764874165549,14.32360001,3140.3,3140.2,3.2078]
[1764874165757,14.3236,3139.9,3139.8,3.2078]
[1764874166147,14.3236,3139.2,3139.1,0.15923]
[1764874166348,14.3236,3139.2,3139.1,3.36703]
[1764874166551,14.3236,3139.2,3139.1,3.2078]
[1764874168856,4.2864,3139.5,3139.1,16.5889]
[1764874169060,12.0503,3139.2,3139.1,16.5889]
[1764874169265,12.0503,3139.2,3139.1,10.5445]
[1764874169558,12.0503,3139.2,3139.1,3.2078]
[1764874171658,4.2864,3139.5,3139.1,15.636]
[1764874171863,6.0231,3139.2,3139.1,15.636]
[1764874172156,6.0231,3139.2,3139.1,15.79523]
[1764874172463,15.92480001,3140.3,3139.5,0.15921]
[1764874172657,12.0503,3139.6,3139.5,9.75081]
[1764874173160,6.0231,3139.6,3139.5,15.79521]
[1764874173355,10.3095,3140.0,3139.9,6.3838]
[1764874173556,6.0231,3139.8,3139.7,6.543]
[1764874173866,6.0231,3139.8,3139.7,12.5874]
[1764874174257,12.0503,3139.8,3139.7,12.5874]
[1764874174657,6.0231,3139.8,3139.7,12.5874]
[1764874174966,12.3005,3139.8,3139.7,6.543]
[1764874175352,1e-08,3140.3,3139.7,6.0]
[1764874175664,3.2078,3141.1,3140.5,12.6082]
[1764874175965,4.05939,3142.0,3141.1,12.6082]
[1764874175966,7.0999,3141.5,3141.1,12.6082]
[1764874176769,0.06756222,3141.2,3141.1,12.61193262]
[1764874176964,3.8921,3141.5,3141.1,12.77106262]
[1764874176965,3.89687691,3141.5,3141.1,12.77106262]
[1764874177165,10.41897691,3141.5,3141.4,15.816]
[1764874177365,0.00477691,3141.5,3141.4,15.816]
[1764874177566,0.00477691,3141.5,3141.4,15.97511]
[1764874177764,3.2078,3142.4,3141.9,12.6082]
[1764874177965,3.21009661,3142.4,3142.0,3.2078]
[1764874178266,6.5221,3142.1,3142.0,9.2484]
[1764874178656,3.21487352,3142.4,3142.0,15.816]
[1764874179067,12.7995,3142.1,3142.0,3.2078]
[1764874179264,16.6998,3142.0,3141.9,0.15909]
[1764874179457,16.6998,3142.0,3141.9,6.19969]
[1764874180057,12.7995,3141.8,3141.7,0.00477691]
[1764874180868,6.5221,3141.8,3141.7,6.04537691]
[1764874181269,12.7995,3141.8,3141.7,0.00477691]
[1764874182859,12.7995,3141.2,3141.1,6.04433262]
[1764874183059,6.5221,3141.2,3141.1,6.04433262]
[1764874183254,12.7995,3141.2,3141.1,0.00373262]
[1764874186258,12.7995,3141.2,3141.1,6.04433262]
[1764874186665,12.7995,3141.2,3141.1,0.00373262]
[1764874188067,3.2078,3141.4,3141.1,12.61193262]
[1764874189073,6.5221,3141.2,3141.1,12.61193262]
[1764874189569,3.9003,3141.5,3141.3,11.8141]
[1764874189772,3.2078,3141.8,3141.4,3.2078]
[1764874189969,15.3866,3141.5,3141.4,3.2078]
[1764874190373,11.9802,3141.4,3141.3,0.15912]
[1764874190571,11.9802,3141.2,3141.1,0.00373262]
[1764874191474,11.9802,3141.2,3141.1,6.14603262]
[1764874191877,3.4064,3141.5,3141.1,11.97696262]
[1764874192083,6.0717,3141.2,3141.1,11.97696262]
[1764874192274,3.4064,3141.5,3141.1,11.97696262]
[1764874193176,6.0717,3141.2,3141.1,11.97696262]
[1764874193381,3.4064,3141.5,3141.2,0.15912]
[1764874193573,6.0717,3141.3,3141.2,11.97322]
[1764874193967,11.9802,3141.3,3141.2,6.30142]
[1764874194481,11.9802,3141.3,3141.2,11.97322]
[1764874194682,6.0717,3141.3,3141.2,11.97322]
[1764874195181,15.8805,3142.0,3141.9,6.1423]
[1764874195384,15.8805,3142.0,3141.9,9.3501]
[1764874195584,3.9003,3142.0,3141.4,15.0219]
[1764874195786,6.0717,3141.5,3141.4,15.0219]
[1764874195984,3.9003,3142.0,3141.4,15.0219]
[1764874196388,3.9003,3142.0,3141.4,11.8141]
[1764874196889,3.9003,3142.0,3141.4,11.97321]
[1764874197086,6.0717,3141.5,3141.4,11.97321]
[1764874197285,15.188,3141.8,3141.7,6.1423]
[1764874197782,9.2795,3141.8,3141.7,11.8141]
[1764874198082,9.2795,3141.8,3141.7,11.9732]
[1764874198083,3.2078,3141.8,3141.7,11.9732]
[1764874198283,15.188,3142.2,3142.1,6.1423]
[1764874198684,15.188,3142.2,3142.1,6.30138]
[1764874198884,0.00707352,3142.4,3142.3,11.8141]
[1764874199084,11.9802,3142.3,3142.2,0.15907]
[1764874199890,6.0717,3141.7,3141.6,6.3014]
[1764874200091,11.9802,3141.7,3141.6,0.1591]
[1764874200593,11.9802,3141.7,3141.6,6.3014]
[1764874200793,3.4064,3142.0,3141.7,0.1591]
[1764874200992,6.0717,3141.8,3141.7,11.9732]
[1764874201296,0.00707352,3142.4,3142.3,11.97317]
[1764874201497,19.0883,3143.0,3142.4,0.15906]
[1764874201801,19.0883,3143.0,3142.9,6.1423]
[1764874201995,6.6142,3143.5,3142.9,11.8141]
[1764874202199,6.6142,3143.5,3142.7,3.2078]
[1764874202504,11.9802,3142.8,3142.7,3.2078]
[1764874202891,11.9802,3142.8,3142.7,9.3501]
[1764874203692,11.9802,3142.8,3142.7,3.2078]
[1764874203902,11.9802,3142.8,3142.7,9.3501]
[1764874204594,0.00477691,3143.4,3142.9,11.8662]
[1764874204998,5.895,3142.8,3142.7,9.4379]
[1764874205198,11.7308,3142.8,3142.7,9.4379]
[1764874205401,9.2552,3143.0,3142.9,11.8662]
[1764874205604,0.00477691,3143.4,3142.9,11.8662]
[1764874206295,5.89977691,3143.4,3143.3,6.2301]
[1764874206495,0.00477691,3143.4,3143.3,11.8662]
[1764874207897,0.00316504,3143.5,3143.3,15.23302]
[1764874208203,11.7308,3143.8,3143.7,6.3891]
[1764874208400,3.2078,3144.4,3143.9,11.8662]
[1764874208598,11.7308,3144.2,3144.1,8.94019587]
[1764874208802,11.7308,3144.2,3143.8,3.2078]
[1764874208803,9.1028,3144.4,3144.3,11.8662]
[1764874208998,3.2078,3144.4,3144.3,11.8696584]
[1764874209200,0.00477691,3144.7,3144.6,11.8662]
[1764874209405,11.7308,3144.4,3144.3,0.0034584]
[1764874209606,14.9386,3144.4,3144.3,0.0034584]
[1764874209803,11.7308,3143.4,3143.3,3.2078]
[1764874210000,11.7308,3143.4,3143.1,2.86912587]